[Event "Polish University-ch Open 2024"]
[Site "Lublin"]
[Date "2024.02.23"]
[Round "3.14"]
[White "Lukasiewicz, Krzysztof"]
[Black "Czechowski, Jakub"]
[Result "1-0"]
[ECO "A45"]
[WhiteElo "2290"]
[BlackElo "1993"]
[Annotator "TA"]
[PlyCount "77"]
[EventDate "2024.02.22"]
[EventType "swiss"]
[EventCountry "POL"]
[SourceTitle "playchess.com"]
[Source "ChessBase"]
[SourceQuality "1"]
[TimeControl "600+3"]

{[%evp 9,77,6,0,0,0,0,77,79,194,204,353,362,542,488,495,218,211,226,164,136,147,93,133,117,156,149,174,173,237,230,221,230,250,217,243,193,295,292,359,372,378,370,452,366,385,378,384,391,391,373,397,381,379,380,433,389,482,485,628,625,936,602,589,497,513,523,1118,431,29998,29999]} 1. d4 {[%emt 0:00:03]} Nf6 {[%emt 0:00:01]} 2. Bf4 {[%emt 0:00:01]} g6 {[%emt 0:00:02]} 3. Nc3 {[%emt 0:00:01]} d5 {[%emt 0:00:02]} 4. e3 {[%emt 0:00:01]} Bg7 {[%emt 0:00:01]} 5. h4 {[%emt 0:00:01]} h5 {[%emt 0:00:03]} 6. Nb5 {[%emt 0:00:05]} Na6 {[%emt 0:00:02]} 7. Nc3 {[%emt 0:00:02]} b6 {[%emt 0:00:15]} (7... Nb8 $11) 8. Bb5+ $16 {[%emt 0:00:32] White is better.} Nd7 {[%emt 0:00:23]} (8... Kf8 $16) 9. Qe2 $18 {[%emt 0:03:08]} (9. Nxd5 Bb7) 9... Nab8 {[%emt 0:00:49]} (9... Nb4 $142 10. a3 c6) 10. Nxd5 {[%emt 0:00:10]} e5 {[%emt 0:00:12]} (10... Bb7 {was called for.} 11. Nxc7+ (11. Bxc7 Qc8 $18) 11... Kf8 12. Nxa8 Bxg2) 11. dxe5 {[%emt 0:00:09]} ({Not} 11. Bxe5 Bxe5 12. dxe5 c6 $18) 11... c6 {[%emt 0:00:33] [#]} 12. e6 {[%emt 0:00:02]} cxd5 {[%emt 0:00:04]} 13. exd7+ {[%emt 0:00:08]} Bxd7 {[%emt 0:00:05]} 14. c3 {[%emt 0:00:57]} O-O {[%emt 0:00:03]} 15. Bxd7 {[%emt 0:00:07]} ({Better is} 15. O-O-O) 15... Qxd7 {[%emt 0:00:02]} 16. Nf3 {[%emt 0:00:01]} Nc6 {[%emt 0:00:01]} 17. O-O {[%emt 0:00:12]} Rfe8 {[%emt 0:00:13]} 18. Rfd1 {[%emt 0:00:14]} Qg4 {[%emt 0:00:50]} (18... Rad8 $142 19. Bg5 Ne7) 19. Qb5 {[%emt 0:00:54]} (19. Rxd5 $2 {too greedy.} Qxf4 20. Qa6 Qe4 $19) 19... Ne7 {[%emt 0:00:44]} 20. Bg5 {[%emt 0:00:42] Against Bf6} f6 {[%emt 0:00:56]} 21. Bf4 {[%emt 0:00:05]} Rad8 {[%emt 0:00:43]} 22. Rd4 {[%emt 0:03:34]} g5 {[%emt 0:00:20] [#]} (22... Qd7 $142 23. Qxd7 Rxd7) 23. Bxg5 $1 {[%emt 0:00:00][%mdl 512]} Qe6 {[%emt 0:00:51]} (23... Qd7 24. Qxd7) 24. Bf4 {[%emt 0:00:00]} Nc6 {[%emt 0:00:29]} 25. Rd2 {[%emt 0:00:00]} Ne5 {[%emt 0:00:06]} 26. Nxe5 {[%emt 0:00:00]} fxe5 {[%emt 0:00:02]} 27. Bg5 {[%emt 0:00:00]} Rd6 {[%emt 0:00:48]} 28. Rad1 {[%emt 0:00:00]} d4 {[%emt 0:00:16]} 29. cxd4 {[%emt 0:00:00]} exd4 {[%emt 0:00:02]} 30. exd4 {[%emt 0:00:00]} Rd5 {[%emt 0:00:10]} 31. Qb3 {[%emt 0:00:00]} Kh8 {[%emt 0:00:27]} 32. Rd3 {[%emt 0:00:00][%cal Bd2d3,Bd3e3,Be3f3,Bf3f7][%mdl 32] And now Re3 would win.} Qd6 {[%emt 0:00:58]} 33. Re3 {[%emt 0:00:00]} Rg8 {[%emt 0:00:10]} 34. Rde1 {[%emt 0:00:00] Re6 would now be deadly.} Bxd4 {[%emt 0:00:44]} 35. Rf3 {[%emt 0:00:00] Hoping for Rf7.} Bg7 {[%emt 0:00:08]} 36. Rf7 {[%emt 0:00:00]} Rd3 {[%emt 0:00:07]} 37. Qc2 {[%emt 0:00:13]} Rd5 {[%emt 0:00:05]} 38. Qe2 {[%emt 0:00:09]} (38. Bf6 $142 {Threatening mate with Bxg7+.} Qxf6 39. Rxf6 Bxf6 40. Qc6) 38... Qc5 {[%emt 0:00:05]} (38... Qg6 $18) 39. Qxh5+ {[%emt 0:00:03] Weighted Error Value: White=0.51/Black=0.61.  Mistake:       	White=3     	Black=7      Inaccurate:     	---       	Black=4      OK:         	White=15    	Black=6      Best:        	White=2     	---} 1-0

[Event "Polish University-ch Open 2024"]
[Site "Lublin"]
[Date "2024.02.23"]
[Round "3.15"]
[White "Dzwierzynski, Bartosz"]
[Black "Dzida, Kamil"]
[Result "0-1"]
[ECO "E20"]
[WhiteElo "2069"]
[BlackElo "2403"]
[Annotator "TA"]
[PlyCount "69"]
[EventDate "2024.02.22"]
[EventType "swiss"]
[EventCountry "POL"]
[SourceTitle "playchess.com"]
[Source "ChessBase"]
[SourceQuality "1"]
[TimeControl "600+3"]

{[%evp 9,69,11,15,6,14,7,8,0,22,0,20,25,18,24,21,16,12,12,19,16,46,-79,-62,-104,-111,-108,-98,-99,-96,-98,-35,-37,-34,-31,-31,-39,-21,-42,-3,-59,-57,-142,-148,-532,-525,-566,-533,-597,-585,-564,-568,-552,-591,-582,-569,-565,-579,-585,-586,-1181,-534,-3288]} 1. d4 {[%emt 0:00:05][%cal Bd2d4,Bd4d5][%mdl 32]} Nf6 {[%emt 0:00:03]} 2. c4 {[%emt 0:00:01]} e6 {[%emt 0:00:01]} 3. Nc3 {[%emt 0:00:01]} Bb4 {[%emt 0:00:02]} 4. f3 {[%emt 0:00:01]} c5 {[%emt 0:00:09]} 5. d5 {[%emt 0:00:01]} b5 {[%emt 0:00:01]} 6. e4 $1 {[%emt 0:00:01] Threatening e5.} d6 {[%emt 0:00:00]} 7. Nge2 {[%emt 0:00:19]} a6 {[%emt 0:00:01]} 8. Ng3 {[%emt 0:00:06] The position is equal.} O-O {[%emt 0:00:31]} 9. Be2 {[%emt 0:00:01]} exd5 {[%emt 0:00:12]} 10. cxd5 {[%emt 0:00:08]} Nbd7 {[%emt 0:00:39]} 11. O-O {[%emt 0:00:03]} c4 {[%emt 0:00:11]} 12. Be3 {[%emt 0:00:03]} Bc5 {[%emt 0:01:11]} 13. Bxc5 {[%emt 0:00:51]} Nxc5 {[%emt 0:00:02]} 14. Qd4 {[%emt 0:00:04]} Re8 {[%emt 0:00:27]} 15. Rad1 {[%emt 0:00:33]} (15. Rfb1 $1 $14 {keeps the upper hand.}) 15... Bd7 {[%emt 0:01:43]} 16. f4 {[%emt 0:02:37] And now e5 would win.} b4 {[%emt 0:00:13]} 17. e5 {[%emt 0:00:01]} bxc3 {[%emt 0:01:44]} 18. exf6 {[%emt 0:01:57] [#]} cxb2 {[%emt 0:00:01]} 19. Qxb2 {[%emt 0:00:07]} Rb8 {[%emt 0:00:23]} (19... Ne4 $17 {aiming for ...c3.} 20. Bxc4 (20. Nxe4 Rxe4 21. Rc1 Rc8 $17) 20... Nxf6 (20... gxf6 21. Nxe4 Rxe4 22. Bd3 $14) (20... Qxf6 21. Qa1 $17)) 20. Qd4 $15 {[%emt 0:00:29]} Qxf6 {[%emt 0:01:47]} 21. Qxf6 {[%emt 0:00:01]} gxf6 {[%emt 0:00:01]} 22. Bxc4 {[%emt 0:00:01]} Rb4 $36 {[%emt 0:00:16][%mdl 2048] Black is more active.} 23. Rc1 {[%emt 0:00:23]} f5 {[%emt 0:01:21]} 24. Rf3 {[%emt 0:01:12]} ({White should try} 24. Nh5 $11) 24... Kg7 {[%emt 0:00:08]} 25. Nh5+ {[%emt 0:00:40]} ({Better is} 25. h3 $15) 25... Kg6 $17 {[%emt 0:00:01] Black is more active.} 26. Rg3+ $2 {[%emt 0:00:01][%mdl 8192] This costs White the game.} (26. Ng3 $17) 26... Kxh5 $19 {[%emt 0:00:01] Black is clearly winning.} 27. Rg5+ {[%emt 0:00:01]} Kh6 {[%emt 0:00:01]} 28. Rc3 {[%emt 0:00:00][%cal Rc3h3]} Rb1+ {[%emt 0:00:09]} 29. Bf1 {[%emt 0:00:03] [#]} Rxf1+ $1 {[%emt 0:00:01]} 30. Kxf1 {[%emt 0:00:01][%cal Rc3h3]} Bb5+ {[%emt 0:00:01]} 31. Kg1 {[%emt 0:01:05][%cal Rc3h3]} Re1+ {[%emt 0:00:01]} 32. Kf2 {[%emt 0:00:00][%cal Rc3h3]} Rf1+ {[%emt 0:00:02]} 33. Ke3 {[%emt 0:00:28]} Ne4 {[%emt 0:00:01]} 34. Rc7 {[%emt 0:00:13]} Nxg5 {[%emt 0:00:05]} (34... Re1+ $142 35. Kf3 Be2+ (35... Nxg5+ $2 36. fxg5+ Kxg5 37. a4 $19) 36. Ke3 Bf1+ (36... Nxg5 37. fxg5+ Kxg5 38. Kf2 $17) 37. Kf3 Re2 (37... Nxg5+ $2 38. fxg5+ Kxg5 39. h3 $19)) 35. Kd4 {[%emt 0:00:10] Weighted Error Value: White=0.81/Black=0.33.  Loses game:     	White=1     	---        Mistake:       	White=3     	Black=2      Inaccurate:     	White=3     	Black=2      OK:         	White=5     	Black=12     Best:        	White=4     	Black=4      Brilliant:      	---       	Black=1} 0-1

[Event "Polish University-ch Open 2024"]
[Site "Lublin"]
[Date "2024.02.23"]
[Round "3.16"]
[White "Namyslak, Piotr"]
[Black "Chylewski, Patryk"]
[Result "0-1"]
[ECO "A34"]
[WhiteElo "1763"]
[BlackElo "2285"]
[Annotator "TA"]
[PlyCount "98"]
[EventDate "2024.02.22"]
[EventType "swiss"]
[EventCountry "POL"]
[SourceTitle "playchess.com"]
[Source "ChessBase"]
[SourceQuality "1"]
[TimeControl "600+3"]

{[%evp 9,98,26,38,44,58,46,175,165,168,-4,-7,-18,0,-50,33,-415,65,64,58,56,62,62,79,42,54,45,48,43,52,43,83,75,97,89,89,58,78,84,79,37,72,6,10,0,0,0,0,-6,-6,-24,0,-8,-6,-20,-9,-31,-3,-64,-62,-154,-88,-90,-57,-56,0,-141,0,-8,0,0,0,-8,0,-48,164,0,0,-123,-8,-29988,-12830,-29961,-29962,-29960,-29959,-12845,-6303,-6287,-6283,-29974,-29955]} 1. c4 {[%emt 0:00:02]} e6 {[%emt 0:00:02]} 2. e4 {[%emt 0:00:02]} c5 {[%emt 0:00:13]} 3. Nc3 {[%emt 0:00:03]} b6 {[%emt 0:00:57]} 4. g3 {[%emt 0:01:09]} Bb7 {[%emt 0:00:02]} 5. Bg2 {[%emt 0:00:01]} Nf6 {[%emt 0:00:40][%cal Ob6b5]} 6. Nge2 {[%emt 0:00:03]} Be7 {[%emt 0:01:37]} 7. O-O {[%emt 0:00:10]} d5 {[%emt 0:00:15]} (7... e5 $14) 8. e5 {[%emt 0:01:21] White is clearly better.} Ne4 {[%emt 0:00:36]} 9. Nxe4 $2 {[%emt 0:00:58]} (9. Nf4 $18) 9... dxe4 $11 {[%emt 0:00:02]} 10. Qc2 {[%emt 0:00:07][%cal Ob2b3]} Nc6 {[%emt 0:01:29]} 11. Bxe4 {[%emt 0:00:14]} (11. Qxe4 $11 Rb8 12. Qe3) 11... h6 {[%emt 0:00:02]} (11... Qd7 $15) 12. f4 $2 {[%emt 0:01:25][%mdl 8192]} (12. b3 $14 {stays ahead.}) 12... O-O $2 {[%emt 0:00:02]} (12... Nd4 $19 13. Qa4+ b5 14. cxb5 Bxe4 15. Nxd4 Qxd4+ 16. Qxd4 cxd4) 13. d3 $14 {[%emt 0:01:06]} Nb4 {[%emt 0:00:23]} 14. Qb3 {[%emt 0:00:30]} Bxe4 {[%emt 0:00:45]} 15. dxe4 {[%emt 0:00:01]} Qc7 {[%emt 0:00:19]} 16. a3 {[%emt 0:00:19]} Nc6 {[%emt 0:00:02]} 17. Rd1 {[%emt 0:00:05]} Rfd8 {[%emt 0:00:32]} 18. Be3 {[%emt 0:00:02]} Na5 {[%emt 0:00:15]} 19. Qc2 {[%emt 0:00:05]} Rxd1+ {[%emt 0:00:02]} 20. Rxd1 {[%emt 0:00:04]} Rd8 {[%emt 0:00:01]} 21. b3 {[%emt 0:00:19]} a6 {[%emt 0:00:24]} 22. Kf2 {[%emt 0:00:14]} Rxd1 {[%emt 0:00:19]} 23. Qxd1 {[%emt 0:00:02]} b5 {[%emt 0:00:11]} 24. cxb5 {[%emt 0:00:38]} axb5 {[%emt 0:00:02]} 25. Nc3 {[%emt 0:00:40]} (25. Qc2 $16) 25... Qb7 $11 {[%emt 0:00:13]} 26. a4 {[%emt 0:01:17]} bxa4 {[%emt 0:01:09]} 27. bxa4 {[%emt 0:00:08]} c4 {[%emt 0:00:38]} 28. Qb1 {[%emt 0:00:12]} Nb3 {[%emt 0:00:01]} 29. Qc2 {[%emt 0:00:06]} Qc6 {[%emt 0:00:01]} 30. Kf3 {[%emt 0:00:05]} Bc5 {[%emt 0:00:01] Hoping for ...Bxe3.} 31. Qe2 {[%emt 0:00:04]} Qb6 {[%emt 0:00:06]} 32. Bxc5 {[%emt 0:00:02]} Qxc5 {[%emt 0:00:01][%mdl 4096] Endgame. KQN-KQN} 33. Qe3 {[%emt 0:00:01]} ({White should play} 33. Kg2 $1 $11) 33... Qb4 {[%emt 0:00:04][%mdl 1024] Black has compensation.} 34. Ne2 {[%emt 0:00:05] [#]} (34. h4 $15) 34... Nc5 {[%emt 0:00:04]} (34... Qe1 $142 $1 {Strongly threatening ...Nd2+.} 35. Qg1 Nd2+ 36. Ke3 Nf1+ 37. Kf3 c3) 35. Qd4 {[%emt 0:00:02][%cal Oa4a5]} Qb3+ {[%emt 0:00:04]} 36. Kg2 {[%emt 0:00:01]} Nd3 {[%emt 0:00:02]} ({Black should try} 36... Nxa4 $15 37. f5 Qd3) 37. f5 {[%emt 0:00:03]} (37. a5 $11) 37... Qc2 {[%emt 0:00:05] Black is more active.} ({Don't take} 37... Qxa4 38. fxe6 fxe6 39. Qd6 $17) (37... Kh7 $17 38. Qa1 exf5 (38... Qc2 39. Kf3 $19)) 38. Kf3 {[%emt 0:00:06]} Ne1+ {[%emt 0:00:01]} 39. Kf2 $1 {[%emt 0:00:01]} Nd3+ {[%emt 0:00:01]} 40. Kf3 {[%emt 0:00:01]} Ne1+ {[%emt 0:00:08]} 41. Ke3 {[%emt 0:00:02]} (41. Kf2 $11 Nd3+ 42. Ke3) 41... Qb3+ $2 {[%emt 0:00:05]} (41... Qxa4 $15 {keeps the upper hand.} 42. Qc3 Qb3 43. fxe6 fxe6) 42. Kf2 $2 {[%emt 0:00:02]} (42. Qc3 $18) 42... Nd3+ {[%emt 0:00:02]} (42... Nc2 $11 43. Qd2 Qxa4) 43. Kg2 $17 {[%emt 0:00:06] [#]} Qd1 {[%emt 0:00:01]} ({Better is} 43... Kh7 $1 $17 44. Qa1 exf5 (44... Qc2 $2 45. Kf3 $19)) 44. Qd8+ $2 {[%emt 0:00:07][%mdl 8192]} (44. Kf3 $11) 44... Kh7 $19 {[%emt 0:00:01]} 45. Ng1 {[%emt 0:00:02]} Ne1+ {[%emt 0:00:01]} 46. Kf2 {[%emt 0:00:04]} Qxd8 {[%emt 0:00:02]} 47. Kxe1 {[%emt 0:00:01]} Qd4 {[%emt 0:00:01]} 48. Ne2 {[%emt 0:00:02]} Qxe4 {[%emt 0:00:01]} 49. fxe6 {[%emt 0:00:01]} fxe6 {[%emt 0:00:01] Weighted Error Value: White=0.75/Black=0.54.  Loses game:     	White=2     	Black=1      Missed win:     	White=2     	Black=1      Mistake:       	White=6     	Black=7      Inaccurate:     	White=4     	Black=5      OK:         	White=5     	Black=12     Best:        	White=3     	---        Strong:       	White=1     	---} 0-1

[Event "Polish University-ch Open 2024"]
[Site "Lublin"]
[Date "2024.02.23"]
[Round "3.17"]
[White "Chaczynski, Kamil"]
[Black "Golenia, Jan"]
[Result "1-0"]
[ECO "C78"]
[WhiteElo "2118"]
[BlackElo "2221"]
[Annotator "RC"]
[PlyCount "79"]
[EventDate "2024.02.22"]
[EventType "swiss"]
[EventCountry "POL"]
[SourceTitle "playchess.com"]
[Source "ChessBase"]
[SourceQuality "1"]
[TimeControl "600+3"]

1. e4 {[%emt 0:00:00]} e5 {[%emt 0:00:05]} 2. Nf3 {[%emt 0:00:01]} Nc6 {[%emt 0:00:01]} 3. Bb5 {[%emt 0:00:02]} a6 {[%emt 0:00:00]} 4. Ba4 {[%emt 0:00:00]} Nf6 {[%emt 0:00:01]} 5. d3 {[%emt 0:00:01]} b5 {[%emt 0:00:14]} 6. Bb3 {[%emt 0:00:01]} Bc5 {[%emt 0:00:03]} 7. O-O {[%emt 0:00:09]} d6 {[%emt 0:00:01]} 8. c3 {[%emt 0:00:06]} h6 {[%emt 0:00:15]} 9. h3 {[%emt 0:00:09]} O-O {[%emt 0:00:03]} 10. Re1 {[%emt 0:00:01]} Bb7 {[%emt 0:00:17]} 11. Nbd2 {[%emt 0:00:51]} Bb6 {[%emt 0:01:30]} 12. Nf1 {[%emt 0:00:14]} Nh5 {[%emt 0:01:41]} 13. d4 {[%emt 0:00:23]} Nf4 {[%emt 0:00:27]} 14. Be3 {[%emt 0:00:16]} Qf6 {[%emt 0:00:36]} 15. dxe5 {[%emt 0:02:41]} dxe5 {[%emt 0:00:27]} 16. Bxb6 {[%emt 0:00:02]} cxb6 {[%emt 0:00:13]} 17. Kh2 {[%emt 0:00:57]} Rfd8 {[%emt 0:00:28]} 18. Qc2 {[%emt 0:00:07]} Na5 {[%emt 0:00:02]} 19. Rad1 {[%emt 0:00:30]} Nxb3 {[%emt 0:00:01]} 20. axb3 {[%emt 0:00:01]} h5 {[%emt 0:01:30]} 21. Ng3 {[%emt 0:01:12]} g6 {[%emt 0:00:03]} 22. Ne2 {[%emt 0:00:20]} Ne6 {[%emt 0:00:04]} 23. b4 {[%emt 0:01:09]} a5 {[%emt 0:00:01]} 24. Rxd8+ {[%emt 0:00:53]} Rxd8 {[%emt 0:00:00]} 25. Ng3 {[%emt 0:00:37]} Qf4 {[%emt 0:00:18]} 26. Qc1 {[%emt 0:00:09]} axb4 {[%emt 0:00:56]} 27. cxb4 {[%emt 0:00:02]} Rc8 {[%emt 0:00:01]} 28. Qxf4 {[%emt 0:00:17]} exf4 {[%emt 0:00:01]} 29. Nf1 {[%emt 0:00:07]} Rc2 {[%emt 0:02:11]} 30. Rb1 {[%emt 0:00:10]} Bxe4 {[%emt 0:00:00]} 31. N3d2 {[%emt 0:00:01]} Bd3 {[%emt 0:00:00]} 32. Kg1 {[%emt 0:00:01]} Nd4 {[%emt 0:00:00]} 33. Ra1 {[%emt 0:00:03]} Rxb2 {[%emt 0:00:00]} 34. Ra8+ {[%emt 0:00:02]} Kg7 {[%emt 0:00:00]} 35. Rd8 {[%emt 0:00:01]} Rxb4 {[%emt 0:00:00]} 36. Kh2 {[%emt 0:00:09]} Be2 {[%emt 0:00:00]} 37. Rd6 {[%emt 0:00:03]} Ne6 {[%emt 0:00:00]} 38. Rxb6 {[%emt 0:00:02]} Rb1 {[%emt 0:00:00]} 39. Kg1 {[%emt 0:00:03]} b4 {[%emt 0:00:00]} 40. Nxb1 {[%emt 0:00:01]} 1-0

[Event "Polish University-ch Open 2024"]
[Site "Lublin"]
[Date "2024.02.23"]
[Round "3.18"]
[White "Fiedorek, Michal"]
[Black "Bartkiewicz, Pawel"]
[Result "1/2-1/2"]
[ECO "B13"]
[WhiteElo "2286"]
[BlackElo "1910"]
[Annotator "TA"]
[PlyCount "111"]
[EventDate "2024.02.22"]
[EventType "swiss"]
[EventCountry "POL"]
[SourceTitle "playchess.com"]
[Source "ChessBase"]
[SourceQuality "1"]
[TimeControl "600+3"]

{[%evp 11,111,19,13,10,8,6,0,5,10,7,19,12,20,28,27,0,38,29,37,42,134,120,133,81,71,48,114,114,115,113,139,124,143,105,100,96,97,90,113,110,359,80,443,69,60,75,69,72,68,24,44,-8,-8,-8,2,-8,-9,-32,-35,-21,-20,-18,-18,-22,-24,-22,0,-8,0,-25,-14,-13,-14,-19,0,-14,-6,-6,0,0,0,0,0,0,0,0,0,0,-6,-6,-6,-6,-6,-14,0,0,0,0,0,0,0,0]} 1. e4 {[%emt 0:00:29]} c6 {[%emt 0:00:02]} 2. d4 {[%emt 0:00:02]} d5 {[%emt 0:00:01]} 3. exd5 {[%emt 0:00:01]} cxd5 {[%emt 0:00:01]} 4. Bd3 {[%emt 0:00:02]} Nc6 {[%emt 0:00:01]} 5. c3 {[%emt 0:00:00]} Nf6 {[%emt 0:00:06]} 6. h3 {[%emt 0:00:02]} g6 {[%emt 0:00:02]} 7. Nf3 {[%emt 0:00:03]} Bf5 {[%emt 0:00:01]} 8. Be2 {[%emt 0:00:01]} Bg7 {[%emt 0:00:03]} 9. O-O {[%emt 0:00:03]} O-O {[%emt 0:00:05]} 10. Re1 {[%emt 0:00:02]} Rc8 {[%emt 0:00:08]} 11. Be3 {[%emt 0:00:05]} (11. Bf4 $5) 11... Ne4 {[%emt 0:00:49]} 12. Nbd2 {[%emt 0:00:03]} Na5 {[%emt 0:00:37]} 13. Nh4 {[%emt 0:00:26]} Kh8 {[%emt 0:00:51]} 14. Nxf5 {[%emt 0:00:40]} gxf5 {[%emt 0:00:02]} 15. Bd3 {[%emt 0:00:25]} Rg8 {[%emt 0:00:26]} (15... Qb6 $14) 16. Qh5 $1 $16 {[%emt 0:00:07][%csl LRf5,LRf7]} e6 {[%emt 0:01:05]} 17. Nf3 {[%emt 0:00:19]} (17. Qxf7 $142 Qd6 18. Qh5) 17... f6 {[%emt 0:00:35]} 18. Nh4 {[%emt 0:01:02] White is more active.} (18. Nd2 {is more complex.} Bf8 19. Qf7 Qe8 20. Qxe8 Rxe8 21. Bf4) 18... Qe8 {[%emt 0:00:26] Prevents Ng6+} ({Black should play} 18... Bf8 $1 $14) 19. Qxe8 $40 {[%emt 0:00:03][%mdl 128] White attacks with force.} Rgxe8 {[%emt 0:00:18]} 20. f3 {[%emt 0:00:16]} Nd6 {[%emt 0:00:26]} 21. Re2 {[%emt 0:00:08]} Nac4 {[%emt 0:00:57]} 22. Bf2 {[%emt 0:00:05]} f4 {[%emt 0:00:41]} 23. Rae1 {[%emt 0:00:09][%cal Od3c4]} e5 {[%emt 0:00:02]} 24. g3 {[%emt 0:00:32]} fxg3 {[%emt 0:00:56]} 25. Bxg3 {[%emt 0:00:03]} exd4 $2 {[%emt 0:00:11] [#]} (25... Rc7 $16 {is a better defense.} 26. Nf5 Nxf5 27. Bxf5 Bh6) 26. cxd4 $2 {[%emt 0:00:02]} (26. Bxc4 $18 dxc4 27. Bxd6 Rxe2 28. Rxe2) 26... f5 $2 {[%emt 0:00:30][%mdl 8192]} 27. Nxf5 $2 {[%emt 0:01:15]} ({Not} 27. Bxf5 Bxd4+ 28. Kh2 Rxe2+ 29. Rxe2 Re8 (29... Nxf5 30. Nxf5 Bc5 31. Ne7 $16) 30. Rxe8+ Nxe8 $14) (27. Bxc4 $18 Bxd4+ 28. Kh1 Rxe2 29. Bxe2) 27... Rxe2 $14 {[%emt 0:00:11]} 28. Rxe2 {[%emt 0:00:01]} Nxf5 {[%emt 0:00:06]} 29. Bxf5 {[%emt 0:00:03]} Bxd4+ {[%emt 0:00:04]} 30. Kh2 {[%emt 0:01:08]} Rf8 {[%emt 0:00:30]} 31. Bb1 {[%emt 0:00:18] This pair of bishops is nice.} (31. Be6 $14) 31... Ne3 $11 {[%emt 0:00:44]} ({Much worse is} 31... Nxb2 $6 32. Rd2 Bg7 33. Rxd5 $16) 32. f4 {[%emt 0:01:18]} Bc5 {[%emt 0:00:20]} 33. Bf2 {[%emt 0:00:45]} d4 {[%emt 0:00:10]} 34. Bxe3 {[%emt 0:00:13]} dxe3 {[%emt 0:00:01][%mdl 4096] Endgame. KRB-KRB} 35. f5 {[%emt 0:00:07]} Kg7 {[%emt 0:00:04]} 36. Kg2 {[%emt 0:00:01]} Kf6 {[%emt 0:00:02]} 37. Kf3 {[%emt 0:00:02]} Rd8 {[%emt 0:00:06]} 38. Be4 {[%emt 0:00:07]} b6 {[%emt 0:00:04]} 39. a3 {[%emt 0:00:05]} a5 {[%emt 0:00:02]} 40. Rc2 {[%emt 0:00:16]} Rd2 {[%emt 0:00:05]} 41. Rxd2 {[%emt 0:00:14] The position is equal.} exd2 {[%emt 0:00:01] KB-KB} 42. Ke2 {[%emt 0:00:01]} Bd4 {[%emt 0:00:01]} (42... Be3 $5) 43. b4 {[%emt 0:00:14]} axb4 {[%emt 0:00:02]} 44. axb4 {[%emt 0:00:01]} Bc3 {[%emt 0:00:01]} 45. b5 {[%emt 0:00:01]} Bb4 {[%emt 0:00:01]} 46. Bc2 {[%emt 0:00:10]} Bc3 {[%emt 0:00:12]} 47. Kd3 {[%emt 0:00:03]} Bb4 {[%emt 0:00:02]} 48. Kc4 $1 {[%emt 0:00:01]} Bc5 {[%emt 0:00:01]} 49. Kc3 {[%emt 0:00:06]} Be3 {[%emt 0:00:02]} 50. Kd3 {[%emt 0:00:07]} Bf4 {[%emt 0:00:02]} 51. Ke4 {[%emt 0:00:04]} Bg5 {[%emt 0:00:03]} 52. Kd4 {[%emt 0:00:12]} h6 {[%emt 0:00:02]} 53. Kd5 {[%emt 0:00:09]} d1=Q+ {[%emt 0:00:05]} 54. Bxd1 {[%emt 0:00:01]} Kxf5 {[%emt 0:00:02]} 55. Kc6 {[%emt 0:00:05]} Be3 {[%emt 0:00:02]} 56. Bg4+ {[%emt 0:00:06] Weighted Error Value: White=0.24 (precise) /Black=0.25 (precise) .  Loses game:     	---       	Black=2      Missed win:     	White=2     	---        Mistake:       	White=2     	Black=2      Inaccurate:     	White=2     	Black=1      OK:         	White=15    	Black=18     Best:        	White=5     	Black=1      Strong:       	White=1     	---} 1/2-1/2